[Event "Chigorin Memorial 2019"]
[Site "Saint Petersburg"]
[Date "2019.10.08"]
[Round "4.7"]
[White "Vorobiov, Evgeny E."]
[Black "Pourramezanali, Amirreza"]
[Result "1/2-1/2"]
[ECO "E08"]
[WhiteElo "2555"]
[BlackElo "2478"]
[Annotator "RC"]
[PlyCount "91"]
[EventDate "2019.10.05"]
[EventType "swiss"]
[EventCountry "RUS"]
[SourceTitle "playchess.com"]
[Source "ChessBase"]
[SourceQuality "1"]
[TimeControl "5400+30"]

1. d4 {[%emt 0:00:00]} d5 {[%emt 0:00:00]} 2. c4 {[%emt 0:00:00]} e6 {[%emt 0:00:00]} 3. Nf3 {[%emt 0:00:28]} Nf6 {[%emt 0:00:00]} 4. g3 {[%emt 0:01:12]} Bb4+ {[%emt 0:00:00]} 5. Bd2 {[%emt 0:00:09]} Be7 {[%emt 0:00:02]} 6. Bg2 {[%emt 0:00:03]} O-O {[%emt 0:00:07]} 7. O-O {[%emt 0:00:06]} c6 {[%emt 0:00:05]} 8. Qc2 {[%emt 0:00:04]} b6 {[%emt 0:00:21]} 9. Rd1 {[%emt 0:01:23]} Nbd7 {[%emt 0:00:08]} 10. Bf4 {[%emt 0:01:41]} Bb7 {[%emt 0:00:11]} 11. Ne5 {[%emt 0:04:39]} Nh5 {[%emt 0:00:10]} 12. Bd2 {[%emt 0:02:59]} Nhf6 {[%emt 0:00:02]} 13. cxd5 cxd5 {[%emt 0:00:02]} 14. Nc6 Bxc6 {[%emt 0:00:04]} 15. Qxc6 {[%emt 0:03:23]} Rc8 {[%emt 0:00:05]} 16. Qb5 {[%emt 0:01:15]} Ne8 {[%emt 0:00:06]} 17. Qd3 {[%emt 0:03:40]} Nd6 {[%emt 0:00:13]} 18. b3 {[%emt 0:04:03]} Nf6 {[%emt 0:08:40]} 19. Nc3 {[%emt 0:02:42]} Qd7 {[%emt 0:00:06]} 20. Rac1 {[%emt 0:01:48]} Rc6 {[%emt 0:08:05]} 21. a4 {[%emt 0:05:36]} Rfc8 {[%emt 0:00:53]} 22. Na2 {[%emt 0:01:23]} Rxc1 {[%emt 0:21:27]} 23. Rxc1 {[%emt 0:00:40]} Rxc1+ {[%emt 0:00:07]} 24. Bxc1 {[%emt 0:02:57]} Qc6 {[%emt 0:00:36]} 25. Qc3 {[%emt 0:03:44]} Qxc3 {[%emt 0:00:08]} 26. Nxc3 {[%emt 0:00:05]} Nfe4 {[%emt 0:05:09]} 27. Na2 {[%emt 0:08:12]} a5 {[%emt 0:06:00]} 28. f3 {[%emt 0:03:22]} Nf6 {[%emt 0:00:02]} 29. Kf2 {[%emt 0:01:25]} Nf5 {[%emt 0:02:36]} 30. Bb2 {[%emt 0:03:49]} Nd6 {[%emt 0:05:06]} 31. Nc3 {[%emt 0:02:36]} h5 {[%emt 0:06:15]} 32. h3 {[%emt 0:02:51]} Nf5 {[%emt 0:03:21]} 33. Nb5 {[%emt 0:02:46]} Nd6 {[%emt 0:00:19]} 34. Na7 {[%emt 0:01:23]} Bd8 {[%emt 0:02:06]} 35. g4 {[%emt 0:01:15]} hxg4 {[%emt 0:00:14]} 36. hxg4 {[%emt 0:00:05]} Bc7 {[%emt 0:01:13]} 37. Ba3 {[%emt 0:01:25]} g6 {[%emt 0:02:45]} 38. e3 {[%emt 0:01:57]} Kg7 {[%emt 0:00:27]} 39. Ke2 {[%emt 0:01:49]} Nd7 {[%emt 0:12:41]} 40. Nc6 {[%emt 0:08:55]} f5 {[%emt 0:01:44]} 41. gxf5 {[%emt 0:03:21]} gxf5 {[%emt 0:00:49]} 42. Kd3 {[%emt 0:00:17]} Kf6 {[%emt 0:00:42]} 43. Ne5 {[%emt 0:01:32]} Nb8 {[%emt 0:01:31]} 44. Kc3 {[%emt 0:08:27]} Nf7 {[%emt 0:01:45]} 45. f4 {[%emt 0:03:02]} Bd6 {[%emt 0:03:13]} 46. Nxf7 {[%emt 0:10:31] Ke5} 1/2-1/2